Cogmind - Beta 13 @@@ ROGUE MODE // 2024.05.23 @ 16:47:06 Player: JP Result: Self-destructed Performance ------------- Evolutions (3) 1500 Regions Visited (6) 1200 Robots Destroyed (34) 170 Value Destroyed (872) 872 Prototype IDs (25) 500 Alien Tech Used (0) 0 Bonus (307) 307 TOTAL SCORE: 4549 Bonus ------- Follower Combat Kills 7 Aligned with FarCom 300 Cogmind --------- Core Integrity 679/700 Matter 128/300 Energy 100/100 System Corruption 2% Temperature Cool (0) Movement Flying (110) Ox1 Location -7/Factory Parts ------- > --- POWER (1) -------- (None) > --- PROPULSION (5) --- Improved Flight Unit > --- UTILITY (5) ------ Small Storage Unit Improved Signal Interpreter > --- WEAPON (2) ------- Heavy Mace > --- INVENTORY (8) ---- Micro Nuclear Core Compact Wheel Improved Heat Sink Hacking Suite Decoy Drone Bay (16/16) Improved Grenade Launcher Peak State ------------ > --- POWER ------------ Light Nuclear Core > --- PROPULSION ------- Flight Unit Flight Unit Improved Flight Unit Improved Flight Unit Cesium-ion Thruster > --- UTILITY ---------- Improved Heat Sink Large Storage Unit Improved Signal Interpreter Decoy Drone Bay > --- WEAPON ----------- Minigun Minigun > --- INVENTORY -------- Advanced Treads Compact Wheel Small Storage Unit Hacking Suite EM Pulse Gun Minigun Improved Grenade Launcher Heavy Mace [Rating: 42] Favorites ----------- Power Light Ion Engine Engine Light Ion Engine Power Core Light Nuclear Core Propulsion Aluminum Leg Treads Improved Treads Leg Aluminum Leg Flight Unit Improved Flight Unit Utility Large Storage Unit Device Improved Terrain Scanner Storage Large Storage Unit Processor Improved Signal Interpreter Hackware Hacking Suite Protection Utility Shielding Weapon Light Assault Rifle Ballistic Gun Light Assault Rifle Launcher Rocket Launcher Impact Weapon Heavy Mace Build | -11 -10 -10 -10 -9 -8 -7 ------- Run | Yrd Mat Min Exi Min Mat Fac Slots Evolved 6 | . . . . . 4 2 Power . | . . . . . . . Propulsion 3 | . . . . . 2 1 Utility 3 | . . . . . 2 1 Weapon . | . . . . . . . Parts Attached 53 | 5 4 1 . 1 27 15 Power 6 | 1 1 . . . 2 2 Engine 3 | 1 1 . . . 1 . Core 3 | . . . . . 1 2 Reactor . | . . . . . . . Propulsion 19 | 2 . . . 1 10 6 Treads 8 | . . . . . 8 . Leg 4 | 2 . . . 1 1 . Wheel . | . . . . . . . Hover . | . . . . . . . Flight 7 | . . . . . 1 6 Utility 18 | 1 2 . . . 10 5 Device 7 | . . . . . 4 3 Storage 3 | 1 1 . . . . 1 Processor 2 | . . . . . 2 . Hackware 1 | . . . . . . 1 Protection 5 | . 1 . . . 4 . Artifact . | . . . . . . . Weapon 10 | 1 1 1 . . 5 2 Energy Gun . | . . . . . . . Energy Cannon . | . . . . . . . Ballistic Gun 7 | 1 1 1 . . 4 . Ballistic Cannon . | . . . . . . . Launcher 1 | . . . . . 1 . Special Weapon . | . . . . . . . Impact Weapon 2 | . . . . . . 2 Slashing Weapon . | . . . . . . . Piercing Weapon . | . . . . . . . Special Melee Weapon . | . . . . . . . Unidentified Prototypes 2 | . . . . . 2 . Parts Lost 10 | . 1 . . . 5 4 Power 2 | . 1 . . . 1 . Propulsion 3 | . . . . . 1 2 Utility 5 | . . . . . 3 2 Weapon . | . . . . . . . Highest Loss Streak 3 | . 1 . . . 2 3 To Critical Strikes . | . . . . . . . Average Slot Usage (%) 89 | . 90 100 100 100 84 79 Engine 7 | . 13 14 14 14 2 . Core 1 | . . . . . 1 6 Treads 10 | . . . . . 34 . Leg 13 | . 28 28 28 28 . . Flight 7 | . . . . . . 34 Device 2 | . . . . . 2 6 Storage 11 | . 14 14 14 14 9 7 Processor 2 | . . . . . 2 7 Hackware 1 | . . . . . . 6 Protection 10 | . 12 14 14 14 12 . Ballistic Gun 18 | . 21 28 28 28 17 . Impact Weapon 1 | . . . . . . 6 Naked Turns . | . . . . . . . Heaviest Build 42 | 11 28 26 26 26 42 17 Greatest Support 92 | 20 20 20 20 20 92 23 Greatest Overweight (x) 7 | . 1 1 1 1 7 1 Average Overweight (x) . | . . 1 1 1 . . Largest Inventory Capacity 15 | 8 15 15 15 15 15 15 Average Capacity 13 | 7 11 15 15 15 15 8 Most Carried 15 | 7 8 15 15 15 15 15 Average Carried 11 | 3 6 12 15 15 14 5 Final Capacity 15 | 8 15 15 15 15 15 8 Final Carried 15 | 4 8 15 15 15 15 7 Class Distribution -------------------- 75% | Mutant 11% | Scout 5% | Scavenger-Mutant 4% | Sprinter Dominant Class ---------------- Mutant | -10/Materials Mutant | -10/Mines Mutant | -10/Exiles Mutant | -9/Mines Mutant | -8/Materials Scout | -7/Factory Resources | -11 -10 -10 -10 -9 -8 -7 ----------- Run | Yrd Mat Min Exi Min Mat Fac Matter Collected 1010 | 95 54 109 . 68 615 69 Remotely . | . . . . . . . Salvage Created 1313 | . 140 109 . . 995 69 Parts 81 | . 10 6 . . 59 6 Haulers Intercepted 3 | . 1 . . . 2 . Recyclers Shooed 3 | . 1 . . . 2 . Parts Field Recycled . | . . . . . . . Retrieved Matter . | . . . . . . . Parts Self-Destructed . | . . . . . . . Prevented . | . . . . . . . Kills | -11 -10 -10 -10 -9 -8 -7 ------- Run | Yrd Mat Min Exi Min Mat Fac Combat Hostiles Destroyed 23 | . 3 3 . . 16 1 Melee 1 | . . . . . . 1 Guns 19 | . 3 3 . . 13 . AOE 3 | . . . . . 3 . Classes Destroyed 11 | . 4 1 . . 4 2 Builder 1 | . . . . . . 1 Hauler 3 | . 1 . . . 2 . Recycler 4 | . . 1 . . 3 . Operator 2 | . 1 . . . . 1 Watcher 1 | . . . . . 1 . Swarmer 8 | . 2 3 . . 3 . Grunt 7 | . 1 . . . 6 . Brawler 1 | . . . . . 1 . Sentry 5 | . . . . . 5 . Hunter 1 | . . . . . 1 . Programmer 1 | . . . . . . 1 Best Kill Streak 6 | . 2 4 . . 6 1 Combat Bots Only 5 | . 2 3 . . 5 1 Max Kills in Single Turn 3 | . 1 1 . . 3 1 Gunslinging . | . . . . . . . Exploded 3 | . . . . . 3 . Melee 1 | . . . . . . 1 Uniques/NPCs Destroyed . | . . . . . . . Combat | -11 -10 -10 -10 -9 -8 -7 -------- Run | Yrd Mat Min Exi Min Mat Fac Hostile Shots Fired 185 | . 33 12 . 1 91 48 Missed 59 | . 6 3 . . 26 24 Damage Taken 1596 | . 247 71 . 12 1023 243 Core 177 | . 46 . . . 110 21 Absorbed by Shields . | . . . . . . . Redirected to Shielding 32 | . 2 7 . . 23 . Core Remaining (%) 87 | 100 . . . 81 80 . Volleys Fired 112 | . 29 9 . . 74 . Largest 2 | . 2 2 . . 2 . Hottest 53 | . 40 40 . . 53 . Shots Fired 209 | . 43 18 . . 148 . Gun 208 | . 43 18 . . 147 . Cannon . | . . . . . . . Launcher 1 | . . . . . 1 . Special . | . . . . . . . Kinetic 208 | . 43 18 . . 147 . Thermal . | . . . . . . . Explosive 1 | . . . . . 1 . Electromagnetic . | . . . . . . . Robot Hit Streak 16 | . 7 5 . . 16 . Robot Miss Streak 4 | . 4 3 . . 2 . Penetration Max . | . . . . . . . Secondary Targets . | . . . . . . . Shots Hit Robots 155 | . 29 11 . . 112 3 Core Hits 61 | . 11 7 . . 42 1 Critical Kills 2 | . . . . . 2 . Critical Parts Destroyed 4 | . 2 . . . 1 1 Critical Strikes 6 | . 2 . . . 3 1 Destroy 5 | . 2 . . . 3 . Smash 1 | . . . . . . 1 Melee Attacks 20 | . . . . . . 20 Impact 20 | . . . . . . 20 Slashing . | . . . . . . . Piercing . | . . . . . . . Sneak Attacks 1 | . . . . . . 1 Combat Hostiles . | . . . . . . . Follow-up Attacks . | . . . . . . . Damage Inflicted 2195 | . 258 90 . 10 1685 152 Guns 1846 | . 233 90 . . 1523 . Cannons . | . . . . . . . Explosions 162 | . . . . . 162 . Melee 152 | . . . . . . 152 Ramming 35 | . 25 . . 10 . . Kinetic 1846 | . 233 90 . . 1523 . Thermal . | . . . . . . . Explosive 162 | . . . . . 162 . Electromagnetic . | . . . . . . . Impact 152 | . . . . . . 152 Slashing . | . . . . . . . Piercing . | . . . . . . . Highest Corruption 4 | . . . . . 4 2 Average Corruption 2 | . . . . . 4 2 Corruption Purged . | . . . . . . . Corruption Blocked . | . . . . . . . Effects 15 | . . . . . 5 10 Message Errors 4 | . . . . . 2 2 Matter Fused 4 | . . . . . 2 2 Heat Flow Errors 5 | . . . . . 1 4 Energy Discharges 1 | . . . . . . 1 Parts Rejected 1 | . . . . . . 1 Overload Shots . | . . . . . . . Overflow Damage 98 | . . . . . 40 58 Projectiles . | . . . . . . . Explosions 40 | . . . . . 40 . Melee 58 | . . . . . . 58 Knockbacks 2 | . 1 . . . . 1 Impact 2 | . 1 . . . . 1 Kinetic . | . . . . . . . Secondary . | . . . . . . . Self-Inflicted Damage . | . . . . . . . Shots . | . . . . . . . Rammed . | . . . . . . . Targets Rammed 6 | . 3 . . 3 . . Kicked 6 | . 3 . . 3 . . Crushed . | . . . . . . . Highest Temperature 258 | . 6 . . . 189 258 Average Temperature 95 | . 6 . . . 35 130 Received Heat Transfer 501 | . 66 . . . 360 75 Siege Activations . | . . . . . . . Robots Corrupted . | . . . . . . . Combat Hostiles . | . . . . . . . Parts Fried 7 | . . . . . . 7 Impact Corruptions 2 | . . . . . . 2 Robots Melted . | . . . . . . . Combat Hostiles . | . . . . . . . Parts Melted . | . . . . . . . Heat Transferred . | . . . . . . . Parts Sabotaged . | . . . . . . . Parts Stolen . | . . . . . . . Parts Stripped . | . . . . . . . Power Chain Reactions . | . . . . . . . Alert | -11 -10 -10 -10 -9 -8 -7 ------- Run | Yrd Mat Min Exi Min Mat Fac Peak Influence 325 | . 93 94 . . 325 284 Initial 103 | . . 19 . . . 103 Average 76 | . 43 46 . . 123 98 Maximum Alert Level 1 | . . . . . 1 1 Low Security (%) 90 | 100 100 100 . 100 74 93 Level 1 9 | . . . . . 25 6 Level 2 . | . . . . . . . Level 3 . | . . . . . . . Level 4 . | . . . . . . . Level 5 . | . . . . . . . High Security . | . . . . . . . Max Security . | . . . . . . . Squads Dispatched 11 | . 2 . . . 1 8 Investigation 6 | . 2 . . . . 4 Extermination 1 | . . . . . . 1 Reinforcement 3 | . . . . . 1 2 Assault . | . . . . . . . Garrison 1 | . . . . . . 1 Intercept . | . . . . . . . Searches Triggered . | . . . . . . . Construction Impeded . | . . . . . . . Haulers Reinforced . | . . . . . . . Active Scanning Responses . | . . . . . . . Cargo Convoy Interrupts . | . . . . . . . Stealth | -11 -10 -10 -10 -9 -8 -7 --------- Run | Yrd Mat Min Exi Min Mat Fac Distress Signals 6 | . 1 . . . 2 3 Communications Jammed . | . . . . . . . Distress Signals . | . . . . . . . Times Spotted 68 | . 10 3 . 1 29 25 Peak Tracking Total 11 | . 3 3 . 1 9 11 Tactical Retreats 12 | . 3 . . . 4 5 Traps | -11 -10 -10 -10 -9 -8 -7 ------- Run | Yrd Mat Min Exi Min Mat Fac Traps Triggered 4 | . . . . . 1 3 Indirectly . | . . . . . . . Trap Hack Attempts . | . . . . . . . Triggered . | . . . . . . . Disarmed . | . . . . . . . Reprogrammed . | . . . . . . . Reused . | . . . . . . . Traps Extracted . | . . . . . . . Installed . | . . . . . . . Triggered . | . . . . . . . Machines | -11 -10 -10 -10 -9 -8 -7 ---------- Run | Yrd Mat Min Exi Min Mat Fac Machines Disabled . | . . . . . . . Max in Single Turn . | . . . . . . . Machines Repaired . | . . . . . . . Machines Dismantled . | . . . . . . . Machines Sabotaged . | . . . . . . . Overloaded Fab Kills . | . . . . . . . Hacking | -11 -10 -10 -10 -9 -8 -7 --------- Run | Yrd Mat Min Exi Min Mat Fac Machines Accessed 18 | . 6 1 1 . 5 5 Terminals 9 | . 4 . . . 3 2 Fabricators 3 | . . . . . . 3 Repair Stations . | . . . . . . . Recycling Units 2 | . 2 . . . . . Scanalyzers 2 | . . . . . 2 . Garrison Access . | . . . . . . . Total Hacks 52 | . 15 1 1 . 23 12 Successful 26 | . 6 1 1 . 13 5 Failed 26 | . 9 . . . 10 7 Catastrophic 5 | . 1 . . . 2 2 Database Lockouts . | . . . . . . . Manual 31 | . 13 . 1 . 11 6 Terminals 30 | . 13 . . . 11 6 Fabricators 6 | . . . . . . 6 Repair Stations . | . . . . . . . Recycling Units 2 | . 2 . . . . . Scanalyzers 12 | . . . . . 12 . Garrison Access . | . . . . . . . Terminal Hacks 3 | . 1 1 1 . . . Open Door 1 | . . 1 . . . . Branch Access Points 1 | . 1 . . . . . Derelict Proto ID Bank 1 | . . . 1 . . . Fabricator Hacks 4 | . . . . . . 4 Load Schematic 2 | . . . . . . 2 Build 2 | . . . . . . 2 Repair Station Hacks . | . . . . . . . Recycling Unit Hacks 2 | . 2 . . . . . Report Inventory 2 | . 2 . . . . . Scanalyzer 12 | . . . . . 12 . Insert Component 6 | . . . . . 6 . Analyze 6 | . . . . . 6 . Garrison Access Hacks . | . . . . . . . Unauthorized Hacks 5 | . 3 . . . 1 1 Terminals 5 | . 3 . . . 1 1 Botnet 5 | . 3 . . . 1 1 Fabricators . | . . . . . . . Repair Stations . | . . . . . . . Recycling Units . | . . . . . . . Scanalyzers . | . . . . . . . Garrison Access . | . . . . . . . Data Cores Recovered 1 | . 1 . . . . . Used . | . . . . . . . Hacking Detections 14 | . 5 . . . 4 5 Full Trace Events 7 | . 2 . . . 1 4 Feedback Events . | . . . . . . . Feedback Blocked . | . . . . . . . Robot Schematics Acquired . | . . . . . . . Robots Built 4 | . . . . . . 4 Authchips . | . . . . . . . Time 134 | . . . . . . 134 Total Robot Build Rating 16 | . . . . . . 16 Part Schematics Acquired 4 | . . . . . 4 . Parts Built 1 | . . . . . . 1 Authchips . | . . . . . . . Time 73 | . . . . . . 73 Total Part Build Rating 3 | . . . . . . 3 Parts Repaired . | . . . . . . . Time . | . . . . . . . Parts Recycled . | . . . . . . . Recycled Matter . | . . . . . . . Retrieved Matter . | . . . . . . . Retrieved Components . | . . . . . . . Parts Scanalyzed 5 | . . . . . 5 . Part Schematics Acquired 4 | . . . . . 4 . Parts Damaged . | . . . . . . . Bothacking | -11 -10 -10 -10 -9 -8 -7 ------------ Run | Yrd Mat Min Exi Min Mat Fac Used RIF Installer . | . . . . . . . Robots Hacked . | . . . . . . . Non-combat . | . . . . . . . Combat . | . . . . . . . Robot Hacks Applied . | . . . . . . . Relay Couplers Released . | . . . . . . . Fabnet Peak Effective % . | . . . . . . . Robots Rewired . | . . . . . . . Allies Hacked . | . . . . . . . Hacks Repelled . | . . . . . . . Allies | -11 -10 -10 -10 -9 -8 -7 -------- Run | Yrd Mat Min Exi Min Mat Fac Total Allies 8 | . . 1 . 3 . 4 Largest Group 4 | . . 1 . 3 2 4 Highest-Rated Group 48 | . . 31 . 40 32 48 Highest-Rated Ally 31 | . . 31 . 16 16 12 Total Orders . | . . . . . . . Ally Attacks 38 | . . . . 6 14 18 Total Damage 359 | . . . . 57 86 216 Kills 2 | . . . . 1 1 . Allies Corrupted . | . . . . . . . Allies Melted . | . . . . . . . Intel | -11 -10 -10 -10 -9 -8 -7 ------- Run | Yrd Mat Min Exi Min Mat Fac Robot Analysis Total . | . . . . . . . Derelict Logs Recovered 3 | . . 2 . 1 . . Drone Launches . | . . . . . . . Drone Recoveries . | . . . . . . . Exploration | -11 -10 -10 -10 -9 -8 -7 ------------- Run | Yrd Mat Min Exi Min Mat Fac Turns Passed 4189 | 59 463 709 415 447 1265 831 Spaces Moved 2555 | 42 262 347 219 230 462 993 Core 10 | 10 . . . . . . Treads 448 | . . . . . 448 . Legs 1102 | 32 262 347 219 230 12 . Wheels . | . . . . . . . Hover . | . . . . . . . Flight 995 | . . . . . 2 993 Fastest Speed 27 | 50 120 190 190 190 120 27 Average Speed 115 | 103 141 190 190 190 160 28 Slowest Speed 590 | 120 190 190 190 190 590 110 Overloaded Moves . | . . . . . . . Propulsion Burnouts . | . . . . . . . Robots Hopped 7 | . . . . . . 7 Cave-ins Triggered . | . . . . . . . Exploration Rate (%) 42 | 4 49 68 61 39 48 26 Regions Visited 6 Branch Regions 3 Pre-discovered Areas . | . . . . . . . Known Exits Taken 3 | . 1 . 1 . 1 . Unknown Exits Taken 3 | 1 . 1 . 1 . . Scrap Searched 2 | . . . . 2 . . Spaces Dug 12 | . . . . . . 12 Terrain Destroyed 20 | . . . . . 8 12 Melee 12 | . . . . . . 12 Projectile . | . . . . . . . AOE 8 | . . . . . 8 . Terrain Rammed . | . . . . . . . Walls Destroyed . | . . . . . . . Machines Disabled . | . . . . . . . Actions | -11 -10 -10 -10 -9 -8 -7 --------- Run | Yrd Mat Min Exi Min Mat Fac Total 3590 | 57 318 383 218 238 873 1503 Wait 765 | . 14 19 . 3 270 459 Move 2536 | 41 261 346 218 229 461 980 Hop 6 | . . . . . . 6 Pick Up 46 | 9 7 7 . 1 15 7 Fast Attach 14 | 2 . . . . 12 . Attach 29 | 3 3 . . . 9 14 Detach 7 | . . . . . 3 4 Swap 10 | . 1 1 . 1 6 1 Drop 39 | 2 . 1 . 1 23 12 Fire 112 | . 29 9 . . 74 . Melee 20 | . . . . . . 20 Ram . | . . . . . . . Kick 6 | . 3 . . 3 . . Crush . | . . . . . . . Escape Stasis . | . . . . . . . Rewire . | . . . . . . . Trap . | . . . . . . . Miscellaneous . | . . . . . . . Route ------- -11/Scrapyard -10/Materials (discovered 2 exits: [*Mat] / *Min) -10/Mines (discovered 2 exits: [*Mat] / *Exi) -10/Exiles (discovered 2 exits: *Min x2) -9/Mines -8/Materials -7/Factory (discovered 1 exit: *Sto) History --------- Turn | Location | Event 6 | -11/Scrapyard | Discovered new exit (range 15) 60 | -11/Scrapyard | Entered Materials 286 | -10/Materials | Discovered new exit (range 16) 311 | -10/Materials | Build established: Mutant 328 | -10/Materials | Identified exit to Mines 523 | -10/Materials | Entered Mines 533 | -10/Mines | Learned Materials garrison access intel 626 | -10/Mines | Discovered new exit (range 5) 665 | -10/Mines | Received a Mining Laser from a helpful Derelict 1087 | -10/Mines | A weapon hastily lodged in a ceiling crevice suddenly fell to the ground 1152 | -10/Mines | Found the Drone Emporium 1161 | -10/Mines | Found Prototype Device 1225 | -10/Mines | Deemed a non-threat by the Exiles lab entrance 1225 | -10/Mines | Discovered new exit (range 5) 1232 | -10/Mines | Entered Exiles 1233 | -10/Exiles | Identified exit to Mines 1282 | -10/Exiles | Met 8R-AWN 1314 | -10/Exiles | Met EX-HEX 1371 | -10/Exiles | Met EX-BIN 1392 | -10/Exiles | Aligned with FarCom system 1394 | -10/Exiles | Given EX-Vault access code 1453 | -10/Exiles | Opened EX-Vault 1504 | -10/Exiles | Warned to stay clear of 0b10 Research branches 1559 | -10/Exiles | Met EX-DEC 1647 | -10/Exiles | Entered Mines 1664 | -9/Mines | Assisted by bots powering up and referring to "LRC-V3" 1786 | -9/Mines | Learned 2 Materials zone layouts 1827 | -9/Mines | Assembled infested the area 1992 | -9/Mines | Received a Rocket Launcher from a helpful Derelict 2083 | -9/Mines | Discovered new exit (range 6) 2094 | -9/Mines | Entered Materials 2094 | -8/Materials | Accompanied by 2 allies 2094 | -8/Materials | Evolved 4 slots: Propulsion x2, Utility x2 2095 | -8/Materials | Identified Decoy Drone Bay 2096 | -8/Materials | Loaded intel: 1 garrison access location 3223 | -8/Materials | Discovered new exit (range 8) 3357 | -8/Materials | Identified exit to Factory 3359 | -8/Materials | Entered Factory 3359 | -7/Factory | Evolved 2 slots: Propulsion x1, Utility x1 3509 | -7/Factory | Discovered new exit (range 16) 3585 | -7/Factory | Fabricated Hacking Suite? 3743 | -7/Factory | Build established: Scout 3944 | -7/Factory | Identified exit to Storage 4147 | -7/Factory | Fabricated S-27 Virus? 4148 | -7/Factory | Garrison activated, responded to threat 4190 | -7/Factory | Self-destructed Last Messages --------------- >> FABRICATOR: Completed S-27 Virus? Sneak attack on U-05 Engineer. Destroyed Wheel. U-05 Engineer system corrupted by crushing effect. U-05 Engineer calls for garrison support. ALERT: Activating Garrison Access F004. U-05 Engineer system terminally corrupted. Structural Scanner fried. Lgt. Ion Engine fried. Terrain Scan Processor fried. Acquired 8 matter. System corrupted: Heat flow error (+174). Flight Unit destroyed. P-60 Hacker destroyed. Acquired 42 matter. Acquired Mic. Nuclear Core. Dropped Lgt. Nuclear Core. Cesium-ion Thruster destroyed. Hacking Suite destroyed. Map ----- +----------------------------------------------------+ | ???????????????????????????????????????????# """"" | | ??????????????????????????????? ???????????# """"" | | ????????????????????????????? ???????????? """"" | | ??????????????????????????!! ???????????? | | ????????????????????????? ????????????? | | ?????????????????????????? ?????????????? | | ??????????????????????????# #?????????????? | | ?????????????????????????## /??????????????## | | ?????????????????????????# #????????####### | | ?????????????????????????#Tw s#??? ????+ | | ????????????????????####### ##?#/##+## ## | | ????????????????????# #?# ## ### | | ????###?????????????# #?#s #? | | ???? ?????????????# #?# ##? | | ???? ?????????????# #?# #? | | ???? ?????????????# ### #? | | ????" ???????###???# s ## | | ???"" ??????] #??# ##= | | ???"" #? ?]] #??# #### | | ??? #? !] #??# #??? | | ???"" #? #??# #??? | | ????" #?""" """ #??# #### | | ????" #??"" """ #??# | | ????? [#????Y""" #??# | | ????? #?????? #??# | | ######+#########+#### @ | | t | | r | | ^ r | | ######+#########+############ | | #?????? ???????#####+#### | | [ #????# """ ! ?????# # | | #????# """ #????# """" # | | #????# """ !#????# """" # | | ! #????# #????# """" #### | | #????# [#????# """" #??#### | | #????# "" "" #????# """" ####### | | #???????"S"" #????# """" + | | "" "" #?????????" #????# """" ###### ##### ## | | "F "" #???????????###????# #????# #???# ?? | | """"" #?????###########??###############+##### ?? | | #?????# ##??# # ?? | | ########?????# #???# ! #??? | | ?????????????# #???# #??? | | ?????????????# """"""" #???# #??? | | ?????????????# """"""" #???# """"" """"" #??? | | ?????????????# """"""" #???# """"" """"" [#??? | | ?????????????# """"""" #???# """ """ #??? | | ?????????????# #???# #?#? | | ?????????????#####+#####???###########+######## ## | +----------------------------------------------------+ Best States ------------- Heat Dissipation 59 Energy Generation 14 Energy Capacity 265 Matter Stores 300 Matter Capacity 300 Sight Range 16 Terrain Scan Range 16 Terrain Scan Density 10 ECM Strength 2 Armor Coverage 375 Core Shielding 20 Utility Shielding 33 Evasion (%) 64 Targeting Accuracy 6 Recoil Reduction 4 Offensive Hacking 10 Item Schematics ----------------- Hacking Suite | -8/Materials | Scanalyzed Rocket Launcher | -8/Materials | Scanalyzed Cesium-ion Thruster | -8/Materials | Scanalyzed Med. Armor Plating | -8/Materials | Scanalyzed Robot Schematics ------------------ None Fabricated ------------ Hacking Suite | x1 | -7/Factory S-27 Virus | x4 | -7/Factory | Preloaded Alien Tech Used ----------------- None Achievements -------------- None Challenges ------------ None Game ------ Seed DeliveryDeliveryTendrils Manual? 0 Play Time 00:34:18 Cumulative 24.4 hours Start 2024.05.23 @ 16:02:31 End 2024.05.23 @ 16:47:06 Sessions 2 Manual Loads 0 Difficulty Rogue Special Mode None Game No. 38 Rogue 38 Adventurer 0 Explorer 0 Win Type - Total 0 Types 0/0/0/0/0/0/0/0/0 Lore% 22 Gallery% 29 Achievement% 27 Wizard Run 0 Options --------- Layout 1 ASCII 0 Keyboard 0 Movement Mouse Keybinds 0 Fullscreen 2 Font 24/Smallcaps Map View 50x35 Zoom Use 0% Tactical HUD 0 Map Filters NONE Filters NONE Steam 1 RUN: 7792e22e-4fe7-4cd4-8cf5-ecae21596a2d